[Event "GER-ch Youth-U10 2022"]
[Site "Willingen"]
[Date "2022.06.07"]
[Round "5.13"]
[White "Hagn, Tobias"]
[Black "Gersemann, Karl"]
[Result "0-1"]
[ECO "B92"]
[WhiteElo "1337"]
[BlackElo "1620"]
[Annotator "NA RC COMBH"]
[PlyCount "88"]
[EventDate "2022.06.05"]
[EventType "swiss"]
[EventRounds "11"]
[EventCountry "GER"]
[SourceTitle "playchess.com"]
[Source "ChessBase"]
[SourceQuality "1"]
[TimeControl "40/4500+30:900+30"]

1. e4 {[%emt 0:00:04]} c5 {[%emt 0:00:09]} 2. Nf3 {[%emt 0:00:16]} d6 {[%emt 0:00:16]} 3. d4 {[%emt 0:00:25]} cxd4 {[%emt 0:00:09]} 4. Nxd4 {[%emt 0:00:15]} Nf6 {[%emt 0:00:12]} 5. Nc3 {[%emt 0:00:27]} a6 {[%emt 0:00:13]} 6. a4 {[%emt 0:00:50]} Qc7 {[%emt 0:00:20]} 7. Be2 {[%emt 0:01:22]} e5 {[%emt 0:00:18]} 8. Nb3 {[%emt 0:00:50]} Be6 {[%emt 0:00:21]} 9. Be3 {[%emt 0:01:02]} Be7 {[%emt 0:00:59]} 10. a5 {[%emt 0:00:53]} Nbd7 {[%emt 0:01:12]} 11. O-O {[%emt 0:01:52]} O-O {[%emt 0:01:23]} 12. Nd2 {[%emt 0:02:03]} d5 {[%emt 0:04:13]} 13. exd5 {[%emt 0:02:34]} Nxd5 {[%emt 0:00:57]} 14. Nxd5 {[%emt 0:02:03]} Bxd5 {[%emt 0:00:27]} 15. Bf3 {[%emt 0:01:49]} Bxf3 {[%emt 0:00:34]} 16. Nxf3 {[%emt 0:00:23]} Rad8 {[%emt 0:00:31]} 17. Qe2 {[%emt 0:01:07]} f5 {[%emt 0:02:28]} 18. Ng5 {[%emt 0:05:57]} Qc6 {[%emt 0:01:56]} 19. Qf3 {[%emt 0:06:07]} e4 {[%emt 0:01:24]} 20. Qh3 {[%emt 0:02:31]} h6 {[%emt 0:00:34]} 21. f4 {[%emt 0:05:17]} hxg5 {[%emt 0:01:05]} 22. fxg5 {[%emt 0:00:40]} Qg6 {[%emt 0:01:45]} 23. Qh4 {[%emt 0:02:12]} Bc5 {[%emt 0:02:14]} 24. Rae1 {[%emt 0:04:11]} Bxe3+ {[%emt 0:00:28]} 25. Rxe3 {[%emt 0:00:21]} Ne5 {[%emt 0:00:54]} 26. Rc3 {[%emt 0:06:29]} Rc8 {[%emt 0:01:13]} 27. Qg3 {[%emt 0:03:55]} Rxc3 {[%emt 0:01:56]} 28. Qxc3 {[%emt 0:00:22]} Nf7 {[%emt 0:00:20]} 29. h4 {[%emt 0:04:32]} Nd8 {[%emt 0:02:31]} 30. Qb3+ {[%emt 0:07:15]} Qe6 {[%emt 0:00:18]} 31. Qh3 {[%emt 0:00:39]} f4 {[%emt 0:00:34]} 32. Qh1 {[%emt 0:01:27]} e3 {[%emt 0:02:11]} 33. Re1 {[%emt 0:05:11]} Qg4 {[%emt 0:00:32]} 34. Kf1 {[%emt 0:04:19]} f3 {[%emt 0:02:21]} 35. gxf3 {[%emt 0:02:00]} Rxf3+ {[%emt 0:00:00]} 36. Ke2 {[%emt 0:00:14]} Rf2+ {[%emt 0:00:00]} 37. Kd3 {[%emt 0:02:21]} Rd2+ {[%emt 0:00:00]} 38. Kc3 {[%emt 0:00:08]} Qd4+ {[%emt 0:00:00]} 39. Kb3 {[%emt 0:00:10]} Nc6 {[%emt 0:00:11]} 40. Rc1 {[%emt 0:03:19]} Qb4+ {[%emt 0:00:16]} 41. Ka2 {[%emt 0:15:11]} Qa4+ {[%emt 0:15:13]} 42. Kb1 {[%emt 0:00:38]} Nb4 {[%emt 0:00:13]} 43. Re1 {[%emt 0:00:20]} Qa2+ {[%emt 0:00:38]} 44. Kc1 {[%emt 0:00:05]} Qa1# {[%emt 0:00:09]} 0-1

[Event "GER-ch Youth-U10 2022"]
[Site "Willingen"]
[Date "2022.06.07"]
[Round "5.14"]
[White "Wagener, Nicolas"]
[Black "Fadeev, Justin Michael"]
[Result "0-1"]
[ECO "B23"]
[WhiteElo "1315"]
[BlackElo "1320"]
[Annotator "NA RC COMBH"]
[PlyCount "88"]
[EventDate "2022.06.05"]
[EventType "swiss"]
[EventRounds "11"]
[EventCountry "GER"]
[SourceTitle "playchess.com"]
[Source "ChessBase"]
[SourceQuality "1"]
[TimeControl "40/4500+30:900+30"]

1. e4 {[%emt 0:00:05]} c5 {[%emt 0:00:07]} 2. Nc3 {[%emt 0:00:42]} Nc6 {[%emt 0:00:11]} 3. Bc4 {[%emt 0:00:14]} g6 {[%emt 0:00:27]} 4. f4 {[%emt 0:00:15]} Bg7 {[%emt 0:00:43]} 5. Nf3 {[%emt 0:00:15]} e6 {[%emt 0:00:26]} 6. O-O {[%emt 0:00:38]} Nge7 {[%emt 0:00:10]} 7. d3 {[%emt 0:00:23]} O-O {[%emt 0:00:10]} 8. Qe1 {[%emt 0:00:14]} d5 {[%emt 0:01:18]} 9. exd5 {[%emt 0:00:13]} exd5 {[%emt 0:00:09]} 10. Bb3 {[%emt 0:00:14]} Be6 {[%emt 0:01:23]} 11. Qh4 {[%emt 0:01:38]} h6 {[%emt 0:02:15]} 12. f5 {[%emt 0:00:45]} Nxf5 {[%emt 0:00:13]} 13. Qe1 {[%emt 0:00:20]} a6 {[%emt 0:01:21]} 14. a3 {[%emt 0:00:10]} Qd6 {[%emt 0:04:03]} 15. Bd2 {[%emt 0:00:27]} Rfe8 {[%emt 0:00:46]} 16. Qc1 {[%emt 0:00:19]} Kh7 {[%emt 0:03:56]} 17. Bf4 {[%emt 0:00:37]} Qd7 {[%emt 0:01:27]} 18. Na4 {[%emt 0:00:20]} Qe7 {[%emt 0:01:01]} 19. Nb6 {[%emt 0:00:35]} Rad8 {[%emt 0:00:20]} 20. c4 {[%emt 0:02:16]} dxc4 {[%emt 0:01:36]} 21. Bxc4 {[%emt 0:01:09]} Bxc4 {[%emt 0:02:42]} 22. dxc4 {[%emt 0:00:27]} Ncd4 {[%emt 0:01:59]} 23. Nd5 {[%emt 0:00:48]} Rxd5 {[%emt 0:01:04]} 24. Re1 {[%emt 0:00:19]} Nxf3+ {[%emt 0:01:04]} 25. gxf3 {[%emt 0:00:08]} Qxe1+ {[%emt 0:00:11]} 26. Qxe1 {[%emt 0:00:13]} Rxe1+ {[%emt 0:00:08]} 27. Rxe1 {[%emt 0:00:10]} Rd4 {[%emt 0:00:44]} 28. Re4 {[%emt 0:00:06]} Rxe4 {[%emt 0:00:18]} 29. fxe4 {[%emt 0:00:08]} Nd4 {[%emt 0:00:38]} 30. Bd6 {[%emt 0:00:12]} Nf3+ {[%emt 0:00:22]} 31. Kf2 {[%emt 0:00:06]} Nd2 {[%emt 0:00:10]} 32. Bxc5 {[%emt 0:00:19]} Nxe4+ {[%emt 0:00:04]} 33. Ke3 {[%emt 0:00:14]} Nxc5 {[%emt 0:00:21]} 34. b4 {[%emt 0:00:07]} Na4 {[%emt 0:00:31]} 35. Kd3 {[%emt 0:00:37]} f5 {[%emt 0:00:13]} 36. b5 {[%emt 0:00:13]} axb5 {[%emt 0:00:18]} 37. cxb5 {[%emt 0:00:10]} Bb2 {[%emt 0:00:06]} 38. Kc4 {[%emt 0:00:12]} f4 {[%emt 0:00:07]} 39. Kb3 {[%emt 0:00:11]} f3 {[%emt 0:00:07]} 40. Kxa4 {[%emt 0:00:05]} f2 {[%emt 0:00:07]} 41. Ka5 {[%emt 0:15:09]} f1=Q {[%emt 0:15:13]} 42. a4 {[%emt 0:00:09]} Bd4 {[%emt 0:00:52]} 43. b6 {[%emt 0:00:11]} Qc4 {[%emt 0:00:32]} 44. h4 {[%emt 0:00:10]} Qc5# {[%emt 0:00:10]} 0-1

[Event "GER-ch Youth-U10 2022"]
[Site "Willingen"]
[Date "2022.06.07"]
[Round "5.16"]
[White "Rinke, Alexander"]
[Black "Tak, Rannveer"]
[Result "0-1"]
[ECO "C06"]
[WhiteElo "1292"]
[BlackElo "1746"]
[Annotator "NA RC COMBH"]
[PlyCount "60"]
[EventDate "2022.06.05"]
[EventType "swiss"]
[EventRounds "11"]
[EventCountry "GER"]
[SourceTitle "playchess.com"]
[Source "ChessBase"]
[SourceQuality "1"]
[TimeControl "40/4500+30:900+30"]

1. e4 {[%emt 0:00:03]} e6 {[%emt 0:00:03]} 2. d4 {[%emt 0:00:04]} d5 {[%emt 0:00:04]} 3. Nd2 {[%emt 0:00:07]} Nf6 {[%emt 0:01:09]} 4. e5 {[%emt 0:00:07]} Nfd7 {[%emt 0:00:03]} 5. Bd3 {[%emt 0:00:13]} c5 {[%emt 0:01:07]} 6. c3 {[%emt 0:00:08]} Nc6 {[%emt 0:00:22]} 7. Ne2 {[%emt 0:00:08]} cxd4 {[%emt 0:01:00]} 8. cxd4 {[%emt 0:00:09]} f6 {[%emt 0:00:03]} 9. exf6 {[%emt 0:03:16]} Nxf6 {[%emt 0:00:11]} 10. O-O {[%emt 0:00:30]} Bd6 {[%emt 0:00:11]} 11. Nf3 {[%emt 0:00:38]} O-O {[%emt 0:00:15]} 12. Nf4 {[%emt 0:02:12]} Ng4 {[%emt 0:08:39]} 13. Ne2 {[%emt 0:05:03]} Rxf3 {[%emt 0:01:33]} 14. gxf3 {[%emt 0:00:10]} Nxh2 {[%emt 0:00:03]} 15. Re1 {[%emt 0:01:08]} Nxf3+ {[%emt 0:00:19]} 16. Kf1 {[%emt 0:02:00]} Qh4 {[%emt 0:00:30]} 17. Ng1 {[%emt 0:06:05]} Nxe1 18. Kxe1 {[%emt 0:00:59]} Qxd4 {[%emt 0:02:31]} 19. Nf3 {[%emt 0:01:26]} Bb4+ {[%emt 0:00:38]} 20. Ke2 {[%emt 0:01:58]} Qf6 {[%emt 0:00:58]} 21. Bg5 {[%emt 0:00:31]} Nd4+ {[%emt 0:03:35]} 22. Nxd4 {[%emt 0:01:49]} Qxg5 {[%emt 0:00:38]} 23. Rc1 {[%emt 0:02:39]} Bd7 {[%emt 0:01:03]} 24. Rc7 {[%emt 0:00:19]} Qe5+ {[%emt 0:00:15]} 25. Kf1 {[%emt 0:00:44]} Qxc7 {[%emt 0:00:12]} 26. Qh5 {[%emt 0:00:51]} Qc1+ {[%emt 0:01:15]} 27. Kg2 {[%emt 0:00:14]} h6 {[%emt 0:00:09]} 28. Nf3 {[%emt 0:01:48]} Qxb2 {[%emt 0:02:02]} 29. Ne5 {[%emt 0:00:36]} Be8 {[%emt 0:00:49]} 30. Qh2 {[%emt 0:00:59]} Bd6 {[%emt 0:00:43]} 0-1

[Event "GER-ch Youth-U10 2022"]
[Site "Willingen"]
[Date "2022.06.07"]
[Round "5.17"]
[White "Vu, Khoi Nguyen"]
[Black "Zhao, Yunsheng"]
[Result "0-1"]
[ECO "C54"]
[WhiteElo "1627"]
[BlackElo "1144"]
[Annotator "NA RC COMBH"]
[PlyCount "115"]
[EventDate "2022.06.05"]
[EventType "swiss"]
[EventRounds "11"]
[EventCountry "GER"]
[SourceTitle "playchess.com"]
[Source "ChessBase"]
[SourceQuality "1"]
[TimeControl "40/4500+30:900+30"]

1. e4 {[%emt 0:00:02]} e5 {[%emt 0:00:05]} 2. Nf3 {[%emt 0:00:06]} Nc6 {[%emt 0:00:05]} 3. Bc4 {[%emt 0:00:09]} Bc5 {[%emt 0:00:05]} 4. c3 {[%emt 0:00:04]} Nf6 {[%emt 0:00:06]} 5. d4 {[%emt 0:00:04]} exd4 {[%emt 0:00:08]} 6. cxd4 {[%emt 0:00:04]} Bb4+ {[%emt 0:00:06]} 7. Nc3 {[%emt 0:00:07]} O-O {[%emt 0:00:39]} 8. Bg5 {[%emt 0:02:13]} Be7 {[%emt 0:02:01]} 9. O-O {[%emt 0:01:37]} d6 {[%emt 0:01:34]} 10. Qc2 {[%emt 0:03:25]} Bg4 {[%emt 0:02:32]} 11. Nd2 {[%emt 0:01:03]} Nxd4 {[%emt 0:02:30]} 12. Qd3 {[%emt 0:00:41]} Nc6 {[%emt 0:00:27]} 13. f3 {[%emt 0:01:14]} Be6 {[%emt 0:01:33]} 14. Bb3 {[%emt 0:01:00]} Ne5 {[%emt 0:03:11]} 15. Qe2 {[%emt 0:01:45]} h6 {[%emt 0:03:34]} 16. Bh4 {[%emt 0:01:38]} Qd7 {[%emt 0:09:17]} 17. Bc2 {[%emt 0:01:27]} Rfe8 {[%emt 0:02:30]} 18. f4 {[%emt 0:01:32]} Bg4 {[%emt 0:06:13]} 19. Qe1 {[%emt 0:01:05]} Nc6 {[%emt 0:00:54]} 20. f5 {[%emt 0:02:16]} Nd4 {[%emt 0:03:34]} 21. Bd3 {[%emt 0:00:57]} Nc6 {[%emt 0:04:49]} 22. h3 {[%emt 0:00:28]} Bh5 {[%emt 0:00:11]} 23. Bxf6 {[%emt 0:00:09]} Bxf6 {[%emt 0:00:30]} 24. g4 {[%emt 0:00:07]} Bxg4 {[%emt 0:00:37]} 25. hxg4 {[%emt 0:00:05]} Bd4+ {[%emt 0:00:36]} 26. Kg2 {[%emt 0:00:33]} Ne5 {[%emt 0:00:52]} 27. Be2 {[%emt 0:01:03]} c6 {[%emt 0:01:16]} 28. Nf3 {[%emt 0:01:10]} Bxc3 {[%emt 0:02:32]} 29. Qxc3 {[%emt 0:01:44]} Nxg4 {[%emt 0:00:51]} 30. Nh2 {[%emt 0:01:37]} Nxh2 {[%emt 0:00:54]} 31. Kxh2 {[%emt 0:00:44]} Rxe4 {[%emt 0:02:56]} 32. Rf2 {[%emt 0:00:41]} Qe7 {[%emt 0:01:36]} 33. Rg1 {[%emt 0:02:53]} Qh4+ {[%emt 0:00:57]} 34. Kg2 {[%emt 0:00:09]} Rae8 {[%emt 0:01:14]} 35. Kf1 {[%emt 0:00:19]} R8e5 {[%emt 0:05:45]} 36. f6 {[%emt 0:01:07]} g6 {[%emt 0:00:34]} 37. Qb3 {[%emt 0:02:51]} Rg5 {[%emt 0:06:19]} 38. Rxg5 {[%emt 0:11:54]} Qxg5 {[%emt 0:01:22]} 39. Qh3 {[%emt 0:00:38]} Re6 {[%emt 0:04:22]} 40. Rg2 {[%emt 0:00:27]} Qc1+ {[%emt 0:01:20]} 41. Kf2 {[%emt 0:15:14]} Rxf6+ {[%emt 0:15:10]} 42. Bf3 {[%emt 0:00:36]} Qd2+ {[%emt 0:03:25]} 43. Kg1 {[%emt 0:00:15]} Qe3+ {[%emt 0:01:38]} 44. Kh2 {[%emt 0:00:31]} Qxf3 {[%emt 0:00:38]} 45. Qc8+ {[%emt 0:02:25]} Kg7 {[%emt 0:01:12]} 46. Qxb7 {[%emt 0:00:36]} Rf5 {[%emt 0:01:40]} 47. Qxa7 {[%emt 0:01:36]} Rh5+ {[%emt 0:00:13]} 48. Kg1 {[%emt 0:00:09]} Qd1+ {[%emt 0:00:06]} 49. Kf2 {[%emt 0:00:07]} Rf5+ {[%emt 0:00:19]} 50. Kg3 {[%emt 0:00:07]} Qf3+ {[%emt 0:00:47]} 51. Kh2 {[%emt 0:00:06]} Qf4+ {[%emt 0:00:46]} 52. Kg1 {[%emt 0:00:16]} Rg5 {[%emt 0:00:45]} 53. Qa3 {[%emt 0:00:55]} Qd4+ {[%emt 0:01:14]} 54. Kh2 {[%emt 0:00:27]} Rh5+ {[%emt 0:02:17]} 55. Kg3 {[%emt 0:00:09]} Qh4+ {[%emt 0:00:47]} 56. Kf3 {[%emt 0:00:07]} Rf5+ {[%emt 0:00:15]} 57. Ke2 {[%emt 0:00:59]} Qe4+ {[%emt 0:00:11]} 58. Kd1 {[%emt 0:00:13]} 0-1

[Event "GER-ch Youth-U10 2022"]
[Site "Willingen"]
[Date "2022.06.07"]
[Round "5.19"]
[White "Andersen, Jonatan M"]
[Black "Dotschuweit, Erik"]
[Result "0-1"]
[ECO "B28"]
[WhiteElo "1857"]
[BlackElo "1323"]
[Annotator "NA RC COMBH"]
[PlyCount "86"]
[EventDate "2022.06.05"]
[EventType "swiss"]
[EventRounds "11"]
[EventCountry "GER"]
[SourceTitle "playchess.com"]
[Source "ChessBase"]
[SourceQuality "1"]
[TimeControl "40/4500+30:900+30"]

1. e4 {[%emt 0:00:01]} c5 {[%emt 0:00:10]} 2. Nf3 {[%emt 0:00:07]} a6 {[%emt 0:00:27]} 3. c3 {[%emt 0:00:22]} Nc6 {[%emt 0:00:33]} 4. d4 {[%emt 0:00:12]} cxd4 {[%emt 0:00:37]} 5. cxd4 {[%emt 0:02:27]} e6 {[%emt 0:01:08]} 6. Nc3 {[%emt 0:00:30]} d5 {[%emt 0:00:28]} 7. exd5 {[%emt 0:00:12]} exd5 {[%emt 0:00:18]} 8. Bd3 {[%emt 0:00:28]} Bg4 {[%emt 0:00:37]} 9. Be3 {[%emt 0:00:32]} Be7 {[%emt 0:00:37]} 10. h3 {[%emt 0:00:44]} Bh5 {[%emt 0:00:37]} 11. g4 {[%emt 0:00:17]} Bg6 {[%emt 0:00:12]} 12. Bxg6 {[%emt 0:00:06]} hxg6 {[%emt 0:00:13]} 13. Qb3 {[%emt 0:00:26]} Nf6 {[%emt 0:02:30]} 14. g5 {[%emt 0:01:23]} Ne4 {[%emt 0:00:17]} 15. Qxd5 {[%emt 0:01:11]} Nd6 {[%emt 0:04:46]} 16. a3 {[%emt 0:01:09]} Qc8 {[%emt 0:02:25]} 17. h4 {[%emt 0:02:41]} b6 {[%emt 0:04:58]} 18. Ne5 {[%emt 0:03:13]} Nxe5 {[%emt 0:00:41]} 19. dxe5 {[%emt 0:00:57]} Nc4 {[%emt 0:00:40]} 20. Na4 {[%emt 0:05:03]} b5 {[%emt 0:06:34]} 21. Rc1 {[%emt 0:01:23]} Qd8 {[%emt 0:15:10]} 22. Qxd8+ {[%emt 0:00:17]} Rxd8 {[%emt 0:00:18]} 23. Bf4 {[%emt 0:01:53]} Rd4 {[%emt 0:01:26]} 24. Bg3 {[%emt 0:06:53]} bxa4 {[%emt 0:00:36]} 25. Rc2 {[%emt 0:01:01]} Re4+ {[%emt 0:03:31]} 26. Kf1 {[%emt 0:00:20]} Nxe5 {[%emt 0:00:48]} 27. Kg2 {[%emt 0:00:09]} O-O {[%emt 0:01:45]} 28. f3 {[%emt 0:00:34]} Rc4 {[%emt 0:00:46]} 29. Re2 {[%emt 0:00:53]} Nc6 {[%emt 0:01:04]} 30. f4 {[%emt 0:00:40]} Bd6 {[%emt 0:00:34]} 31. Rf1 {[%emt 0:00:30]} Ne7 {[%emt 0:00:47]} 32. Kh3 {[%emt 0:00:43]} Nf5 {[%emt 0:00:48]} 33. Bh2 {[%emt 0:00:31]} Rb8 {[%emt 0:02:05]} 34. Kg4 {[%emt 0:00:45]} Rb3 {[%emt 0:00:21]} 35. h5 {[%emt 0:01:07]} Ne3+ {[%emt 0:00:38]} 36. Rxe3 {[%emt 0:00:24]} Rxe3 {[%emt 0:00:16]} 37. Rd1 {[%emt 0:00:07]} gxh5+ {[%emt 0:00:42]} 38. Kxh5 {[%emt 0:00:14]} Rh3+ {[%emt 0:00:21]} 39. Kg4 {[%emt 0:00:09]} Rxh2 {[%emt 0:00:13]} 40. Rxd6 {[%emt 0:00:02]} Rf2 {[%emt 0:01:01]} 41. Rd8+ {[%emt 0:15:10]} Kh7 {[%emt 0:15:11]} 42. g6+ {[%emt 0:00:21]} Kxg6 {[%emt 0:00:16]} 43. Rd6+ {[%emt 0:00:06]} f6 {[%emt 0:00:15]} 0-1

[Event "GER-ch Youth-U10 2022"]
[Site "Willingen"]
[Date "2022.06.07"]
[Round "5.20"]
[White "Moskalenko, Michael"]
[Black "Sheng, Ming"]
[Result "0-1"]
[ECO "E11"]
[WhiteElo "1266"]
[BlackElo "1258"]
[Annotator "NA RC COMBH"]
[PlyCount "104"]
[EventDate "2022.06.05"]
[EventType "swiss"]
[EventRounds "11"]
[EventCountry "GER"]
[SourceTitle "playchess.com"]
[Source "ChessBase"]
[SourceQuality "1"]
[TimeControl "40/4500+30:900+30"]

1. d4 {[%emt 0:00:01]} Nf6 {[%emt 0:00:07]} 2. c4 {[%emt 0:00:07]} e6 {[%emt 0:00:09]} 3. Nf3 {[%emt 0:00:08]} d5 {[%emt 0:00:06]} 4. g3 {[%emt 0:00:05]} Bb4+ {[%emt 0:00:24]} 5. Bd2 {[%emt 0:00:16]} Bxd2+ {[%emt 0:00:44]} 6. Nbxd2 {[%emt 0:00:08]} c6 {[%emt 0:00:13]} 7. Qc2 {[%emt 0:00:08]} O-O {[%emt 0:00:18]} 8. Bg2 {[%emt 0:00:16]} Nbd7 {[%emt 0:00:34]} 9. O-O {[%emt 0:00:24]} Re8 {[%emt 0:01:11]} 10. b4 {[%emt 0:02:17]} dxc4 {[%emt 0:01:20]} 11. Nxc4 {[%emt 0:00:32]} Nb6 {[%emt 0:00:36]} 12. Nce5 {[%emt 0:00:43]} Nbd5 {[%emt 0:02:05]} 13. a3 {[%emt 0:01:52]} a5 {[%emt 0:01:34]} 14. Qb3 {[%emt 0:02:34]} axb4 {[%emt 0:02:22]} 15. axb4 {[%emt 0:00:11]} Bd7 {[%emt 0:00:18]} 16. Ng5 {[%emt 0:04:30]} Rf8 {[%emt 0:02:03]} 17. Rfb1 {[%emt 0:02:57]} h6 {[%emt 0:02:22]} 18. Ngf3 {[%emt 0:01:04]} Qe7 {[%emt 0:04:29]} 19. Rxa8 {[%emt 0:02:38]} Rxa8 {[%emt 0:00:24]} 20. Nd2 {[%emt 0:05:17]} Nc7 {[%emt 0:06:10]} 21. Ndc4 {[%emt 0:03:23]} Nb5 {[%emt 0:00:32]} 22. e3 {[%emt 0:00:25]} Nd5 {[%emt 0:01:34]} 23. Bxd5 {[%emt 0:04:04]} exd5 {[%emt 0:00:44]} 24. Nb6 {[%emt 0:00:23]} Rd8 {[%emt 0:00:49]} 25. Nexd7 {[%emt 0:00:15]} Rxd7 {[%emt 0:00:09]} 26. Nxd7 {[%emt 0:00:05]} Qxd7 {[%emt 0:00:08]} 27. Qd3 {[%emt 0:01:00]} g6 {[%emt 0:01:25]} 28. Ra1 {[%emt 0:01:17]} Qe7 {[%emt 0:00:53]} 29. Rb1 {[%emt 0:02:26]} Nd6 {[%emt 0:01:22]} 30. Ra1 {[%emt 0:02:23]} Nb5 {[%emt 0:00:56]} 31. Ra4 {[%emt 0:03:20]} Kg7 {[%emt 0:00:26]} 32. Qc2 {[%emt 0:01:04]} h5 {[%emt 0:02:17]} 33. Qc5 {[%emt 0:01:33]} Qe4 {[%emt 0:00:40]} 34. Qb6 {[%emt 0:01:46]} Qb1+ {[%emt 0:00:28]} 35. Kg2 {[%emt 0:00:56]} Qe4+ {[%emt 0:01:13]} 36. f3 {[%emt 0:03:31]} Qc2+ {[%emt 0:00:27]} 37. Kh3 {[%emt 0:01:50]} Qxa4 {[%emt 0:00:05]} 38. Qxb7 {[%emt 0:00:10]} Qxb4 {[%emt 0:01:11]} 39. Qxc6 {[%emt 0:00:09]} Qc4 {[%emt 0:00:15]} 40. Qb7 {[%emt 0:01:25]} Nd6 {[%emt 0:00:19]} 41. Qb8 {[%emt 0:15:28]} Qc8+ {[%emt 0:15:12]} 42. Qxc8 {[%emt 0:00:14]} Nxc8 {[%emt 0:00:01]} 43. g4 {[%emt 0:01:03]} hxg4+ {[%emt 0:00:39]} 44. Kxg4 {[%emt 0:00:09]} f6 {[%emt 0:01:53]} 45. f4 {[%emt 0:00:53]} Ne7 {[%emt 0:00:31]} 46. Kf3 {[%emt 0:01:00]} f5 {[%emt 0:00:17]} 47. Kg3 {[%emt 0:00:15]} Kh6 {[%emt 0:00:18]} 48. h4 {[%emt 0:00:29]} Kh5 {[%emt 0:00:09]} 49. Kh3 {[%emt 0:00:20]} Ng8 {[%emt 0:00:10]} 50. Kg3 {[%emt 0:01:32]} Nf6 {[%emt 0:00:07]} 51. Kf3 {[%emt 0:01:32]} Kxh4 {[%emt 0:00:08]} 52. Kf2 {[%emt 0:02:15]} Ng4+ {[%emt 0:00:46]} 0-1

[Event "GER-ch Youth-U10 2022"]
[Site "Willingen"]
[Date "2022.06.07"]
[Round "5.21"]
[White "Fischer, Quirin"]
[Black "Menke, Raphael Wilhelm"]
[Result "1-0"]
[ECO "C56"]
[WhiteElo "1195"]
[BlackElo "1212"]
[Annotator "NA RC COMBH"]
[PlyCount "89"]
[EventDate "2022.06.05"]
[EventType "swiss"]
[EventRounds "11"]
[EventCountry "GER"]
[SourceTitle "playchess.com"]
[Source "ChessBase"]
[SourceQuality "1"]
[TimeControl "40/4500+30:900+30"]

1. e4 {[%emt 0:00:06]} e5 {[%emt 0:00:02]} 2. Nf3 {[%emt 0:00:05]} Nc6 {[%emt 0:00:04]} 3. Bc4 {[%emt 0:00:05]} Nf6 {[%emt 0:00:13]} 4. d4 {[%emt 0:00:06]} exd4 {[%emt 0:00:05]} 5. O-O {[%emt 0:00:05]} Nxe4 {[%emt 0:00:05]} 6. Re1 {[%emt 0:00:09]} d5 {[%emt 0:03:58]} 7. Bxd5 {[%emt 0:00:55]} Qxd5 {[%emt 0:00:06]} 8. Nc3 {[%emt 0:00:06]} Qh5 {[%emt 0:00:06]} 9. Nxe4 {[%emt 0:00:07]} Be6 {[%emt 0:00:05]} 10. Neg5 {[%emt 0:00:15]} O-O-O {[%emt 0:00:22]} 11. Nxe6 {[%emt 0:00:42]} fxe6 {[%emt 0:00:12]} 12. Rxe6 {[%emt 0:00:37]} Bc5 {[%emt 0:01:02]} 13. Bd2 {[%emt 0:00:35]} Rhe8 {[%emt 0:01:12]} 14. Qe1 {[%emt 0:00:15]} h6 {[%emt 0:00:46]} 15. b4 {[%emt 0:02:53]} Bb6 {[%emt 0:01:35]} 16. a4 {[%emt 0:00:22]} a6 {[%emt 0:00:33]} 17. b5 {[%emt 0:00:08]} Nb8 {[%emt 0:00:47]} 18. a5 {[%emt 0:00:47]} Bc5 {[%emt 0:00:38]} 19. b6 {[%emt 0:00:24]} Bd6 {[%emt 0:03:42]} 20. h3 {[%emt 0:01:07]} Nc6 {[%emt 0:01:14]} 21. Ra4 {[%emt 0:04:25]} Qf7 {[%emt 0:01:53]} 22. Re2 {[%emt 0:01:14]} Bc5 {[%emt 0:01:24]} 23. Ne5 {[%emt 0:02:12]} Nxe5 {[%emt 0:02:00]} 24. Rxe5 {[%emt 0:00:12]} Bd6 {[%emt 0:00:45]} 25. Re4 {[%emt 0:01:05]} Bc5 {[%emt 0:00:26]} 26. bxc7 {[%emt 0:01:46]} Kxc7 {[%emt 0:00:33]} 27. Qe2 {[%emt 0:00:50]} Kb8 {[%emt 0:00:33]} 28. Rxe8 {[%emt 0:03:08]} Rxe8 {[%emt 0:00:42]} 29. Qd3 {[%emt 0:00:43]} Rf8 {[%emt 0:06:11]} 30. Be1 {[%emt 0:01:17]} Re8 {[%emt 0:00:24]} 31. Kf1 {[%emt 0:01:19]} Rxe1+ {[%emt 0:00:54]} 32. Kxe1 {[%emt 0:00:12]} Qe8+ {[%emt 0:00:02]} 33. Qe2 {[%emt 0:00:34]} Qxa4 {[%emt 0:00:20]} 34. Qe5+ {[%emt 0:00:06]} Ka8 {[%emt 0:00:34]} 35. Qxc5 {[%emt 0:00:09]} Qe8+ {[%emt 0:00:49]} 36. Kd2 {[%emt 0:00:15]} Qd7 {[%emt 0:00:20]} 37. f3 {[%emt 0:00:41]} Qf5 {[%emt 0:02:50]} 38. Qxf5 {[%emt 0:00:47]} d3 {[%emt 0:00:36]} 39. cxd3 {[%emt 0:00:08]} g6 {[%emt 0:00:07]} 40. Qc5 {[%emt 0:00:07]} h5 {[%emt 0:00:39]} 41. d4 {[%emt 0:15:02]} h4 {[%emt 0:15:05]} 42. d5 {[%emt 0:00:05]} g5 {[%emt 0:00:04]} 43. d6 {[%emt 0:00:08]} g4 {[%emt 0:00:09]} 44. d7 {[%emt 0:00:06]} gxh3 {[%emt 0:00:48]} 45. d8=Q# {[%emt 0:00:18]} 1-0